[Event "Turkey IS Bank Super League 2017"]
[Site "Darica-Kocaeli"]
[Date "2017.08.04"]
[Round "10"]
[White "Karatekin, Tamer"]
[Black "Selbes, Tarik"]
[Result "0-1"]
[ECO "A26"]
[WhiteElo "2287"]
[BlackElo "2260"]
[Annotator "ChessBase"]
[PlyCount "72"]
[EventType "team-tourn"]
[EventCountry "TUR"]
[SourceTitle "playchess.com"]
[Source "ChessBase"]
[SourceQuality "1"]
[TimeControl "40/5400+30:1800+30"]

1. c4 {[%emt 0:00:30]} Nf6 {[%emt 0:01:00]} 2. g3 {[%emt 0:00:30]} g6 {[%emt 0:00:30]} 3. Bg2 {[%emt 0:00:30]} Bg7 {[%emt 0:00:30]} 4. Nf3 {[%emt 0:00:30]} O-O {[%emt 0:00:30]} 5. Nc3 {[%emt 0:00:30]} d6 {[%emt 0:00:30]} 6. O-O {[%emt 0:00:00]} Nc6 {[%emt 0:01:30]} 7. Rb1 {[%emt 0:00:00]} e5 {[%emt 0:00:30]} 8. d3 {[%emt 0:00:30]} a5 {[%emt 0:00:30]} 9. a3 {[%emt 0:00:30]} Nd4 {[%emt 0:00:30]} 10. Nxd4 {[%emt 0:00:30]} exd4 {[%emt 0:00:30]} 11. Nb5 {[%emt 0:01:30]} Ne8 {[%emt 0:05:30]} 12. e3 {[%emt 0:02:30]} dxe3 {[%emt 0:00:30]} 13. Bxe3 {[%emt 0:00:30]} c6 {[%emt 0:00:30]} 14. Nc3 {[%emt 0:00:30]} Nf6 {[%emt 0:00:30]} 15. Qb3 {[%emt 0:06:30]} Qe7 {[%emt 0:09:30]} 16. Rfe1 {[%emt 0:02:30]} Be6 {[%emt 0:00:30]} 17. Bd4 {[%emt 0:17:30]} Qd7 {[%emt 0:01:30]} 18. Na4 {[%emt 0:02:30]} Ra6 {[%emt 0:00:00]} 19. Qc3 {[%emt 0:03:30]} Nh5 {[%emt 0:00:00]} 20. c5 {[%emt 0:08:30]} Bxd4 {[%emt 0:09:30]} 21. Qxd4 {[%emt 0:00:30]} Rd8 {[%emt 0:00:00]} 22. Qc3 {[%emt 0:20:30]} Ng7 {[%emt 0:05:00]} 23. cxd6 {[%emt 0:06:30]} Qxd6 {[%emt 0:00:30]} 24. Nc5 {[%emt 0:00:30]} Ra7 {[%emt 0:00:30]} 25. Rbd1 {[%emt 0:04:43]} Qd4 {[%emt 0:01:30]} 26. Qc1 {[%emt 0:01:18]} Bd5 {[%emt 0:04:30]} 27. Re7 {[%emt 0:04:42]} Nf5 {[%emt 0:01:30]} 28. Rxb7 {[%emt 0:01:14]} Rxb7 {[%emt 0:01:30]} 29. Nxb7 {[%emt 0:00:07]} Rb8 {[%emt 0:00:00]} 30. Bxd5 {[%emt 0:03:08]} cxd5 {[%emt 0:01:00]} 31. Qc7 {[%emt 0:03:28]} Qa7 {[%emt 0:00:30]} 32. Re1 {[%emt 0:00:32]} Rxb7 {[%emt 0:04:30]} 33. Qd8+ {[%emt 0:01:01]} Kg7 {[%emt 0:00:00]} 34. Re8 {[%emt 0:00:20]} Rxb2 {[%emt 0:01:00]} 35. Rg8+ {[%emt 0:00:15]} Kh6 {[%emt 0:00:00]} 36. Qf8+ {[%emt 0:00:36]} Kh5 {[%emt 0:00:00]} 0-1

[Event "Turkey IS Bank Super League 2017"]
[Site "Darica-Kocaeli"]
[Date "2017.08.04"]
[Round "10"]
[White "Buyukasik, Diyap"]
[Black "Topak, Engin"]
[Result "1/2-1/2"]
[ECO "E07"]
[WhiteElo "2285"]
[BlackElo "2192"]
[Annotator "ChessBase"]
[PlyCount "101"]
[EventType "team-tourn"]
[EventCountry "TUR"]
[SourceTitle "playchess.com"]
[Source "ChessBase"]
[SourceQuality "1"]
[TimeControl "40/5400+30:1800+30"]

1. Nf3 {[%emt 0:00:30]} Nf6 {[%emt 0:01:00]} 2. g3 {[%emt 0:00:30]} d5 {[%emt 0:00:30]} 3. Bg2 {[%emt 0:00:30]} e6 {[%emt 0:01:30]} 4. O-O {[%emt 0:00:30]} Nbd7 {[%emt 0:00:30]} 5. d4 {[%emt 0:02:30]} Be7 {[%emt 0:05:30]} 6. c4 {[%emt 0:02:30]} O-O {[%emt 0:00:30]} 7. Nbd2 {[%emt 0:00:30]} b6 {[%emt 0:00:30]} 8. cxd5 {[%emt 0:08:30]} exd5 {[%emt 0:02:30]} 9. Ne5 {[%emt 0:00:30]} Bb7 {[%emt 0:00:30]} 10. Ndf3 {[%emt 0:00:30]} c5 {[%emt 0:10:30]} 11. Bf4 {[%emt 0:10:30]} Ne4 {[%emt 0:11:30]} 12. Qa4 {[%emt 0:04:30]} Nxe5 {[%emt 0:04:30]} 13. Nxe5 {[%emt 0:00:30]} Qe8 {[%emt 0:01:30]} 14. Qxe8 {[%emt 0:14:30]} Rfxe8 {[%emt 0:01:30]} 15. dxc5 {[%emt 0:01:30]} bxc5 {[%emt 0:01:30]} 16. Bxe4 {[%emt 0:05:30]} dxe4 {[%emt 0:00:00]} 17. Nc4 {[%emt 0:00:30]} Ba6 {[%emt 0:11:00]} 18. b3 {[%emt 0:00:30]} Red8 {[%emt 0:06:30]} 19. Rfd1 {[%emt 0:03:30]} Rxd1+ {[%emt 0:10:30]} 20. Rxd1 {[%emt 0:00:30]} Rd8 {[%emt 0:00:00]} 21. Rxd8+ {[%emt 0:03:30]} Bxd8 {[%emt 0:00:00]} 22. Bb8 {[%emt 0:00:30]} Bxc4 {[%emt 0:00:30]} 23. bxc4 {[%emt 0:00:00]} Bb6 {[%emt 0:01:30]} 24. g4 {[%emt 0:03:00]} f6 {[%emt 0:02:30]} 25. Kf1 {[%emt 0:04:30]} Kf7 {[%emt 0:00:30]} 26. Ke1 {[%emt 0:00:30]} Ba5+ {[%emt 0:06:30]} 27. Kd1 {[%emt 0:00:30]} a6 {[%emt 0:00:00]} 28. Bd6 {[%emt 0:02:30]} Bb4 {[%emt 0:01:01]} 29. Kc2 {[%emt 0:01:30]} Ke6 {[%emt 0:01:00]} 30. Bf8 {[%emt 0:00:30]} Kf7 {[%emt 0:00:00]} 31. Bd6 {[%emt 0:00:00]} Ke6 {[%emt 0:00:29]} 32. Bf4 {[%emt 0:05:00]} Be1 {[%emt 0:01:59]} 33. Be3 {[%emt 0:02:30]} Kd6 {[%emt 0:00:31]} 34. f3 {[%emt 0:01:30]} exf3 {[%emt 0:00:08]} 35. exf3 {[%emt 0:00:30]} g6 {[%emt 0:00:30]} 36. Kd3 {[%emt 0:00:30]} f5 {[%emt 0:00:05]} 37. h3 {[%emt 0:05:02]} Bh4 {[%emt 0:03:04]} 38. Bf4+ {[%emt 0:02:29]} Ke6 {[%emt 0:01:02]} 39. Be3 {[%emt 0:01:06]} Kd6 {[%emt 0:00:33]} 40. Bh6 {[%emt 0:00:00]} Bf2 {[%emt 0:31:51]} 41. Bg7 {[%emt 0:00:53]} Kd7 {[%emt 0:00:00]} 42. Ke2 {[%emt 0:02:30]} Bg1 {[%emt 0:00:00]} 43. Kf1 {[%emt 0:04:30]} Be3 {[%emt 0:00:00]} 44. Kg2 {[%emt 0:00:30]} Bf4 {[%emt 0:00:00]} 45. Bf8 {[%emt 0:00:30]} Bd6 {[%emt 0:00:00]} 46. Bh6 {[%emt 0:05:30]} Ke6 {[%emt 0:00:00]} 47. f4 {[%emt 0:02:30]} Be7 {[%emt 0:00:00]} 48. Kg3 {[%emt 0:00:30]} Kf7 {[%emt 0:00:00]} 49. h4 {[%emt 0:08:30]} fxg4 {[%emt 0:00:00]} 50. Kxg4 {[%emt 0:00:30]} Ke6 {[%emt 0:00:00]} 51. a3 {[%emt 0:04:30]} 1/2-1/2

[Event "Turkey IS Bank Super League 2017"]
[Site "Darica-Kocaeli"]
[Date "2017.08.04"]
[Round "10"]
[White "Tuna, Alp"]
[Black "Kamer, Kayra"]
[Result "1/2-1/2"]
[ECO "B41"]
[WhiteElo "2280"]
[BlackElo "2062"]
[Annotator "ChessBase"]
[PlyCount "213"]
[EventType "team-tourn"]
[EventCountry "TUR"]
[SourceTitle "playchess.com"]
[Source "ChessBase"]
[SourceQuality "1"]
[TimeControl "40/5400+30:1800+30"]

1. e4 {[%emt 0:00:30]} c5 {[%emt 0:01:00]} 2. Nf3 {[%emt 0:00:30]} e6 {[%emt 0:00:30]} 3. d4 {[%emt 0:00:30]} cxd4 {[%emt 0:00:30]} 4. Nxd4 {[%emt 0:00:30]} a6 {[%emt 0:00:30]} 5. c4 {[%emt 0:00:30]} Nf6 {[%emt 0:00:30]} 6. Nc3 {[%emt 0:00:00]} Qc7 {[%emt 0:00:30]} 7. a3 {[%emt 0:00:00]} Nc6 {[%emt 0:01:30]} 8. Be2 {[%emt 0:06:30]} Nxd4 {[%emt 0:02:30]} 9. Qxd4 {[%emt 0:00:30]} Bc5 {[%emt 0:00:30]} 10. Qd3 {[%emt 0:00:30]} d6 {[%emt 0:00:30]} 11. b4 {[%emt 0:02:30]} Ba7 {[%emt 0:00:30]} 12. O-O {[%emt 0:05:30]} O-O {[%emt 0:00:30]} 13. Rd1 {[%emt 0:06:30]} Ne8 {[%emt 0:05:30]} 14. Be3 {[%emt 0:14:30]} Bxe3 {[%emt 0:02:30]} 15. Qxe3 {[%emt 0:00:00]} b6 {[%emt 0:01:30]} 16. Rac1 {[%emt 0:01:00]} Rb8 {[%emt 0:02:30]} 17. Rd2 {[%emt 0:16:30]} Bb7 {[%emt 0:00:30]} 18. Rcd1 {[%emt 0:01:30]} h6 {[%emt 0:06:30]} 19. e5 {[%emt 0:11:30]} dxe5 {[%emt 0:01:30]} 20. Rd7 {[%emt 0:00:30]} Qc8 {[%emt 0:00:00]} 21. Rd8 {[%emt 0:01:30]} Qxd8 {[%emt 0:00:00]} 22. Rxd8 {[%emt 0:00:30]} Rxd8 {[%emt 0:00:30]} 23. Qxb6 {[%emt 0:00:30]} Rd7 {[%emt 0:00:30]} 24. c5 {[%emt 0:01:30]} Bc8 {[%emt 0:00:00]} 25. Bxa6 {[%emt 0:04:30]} Nc7 {[%emt 0:00:00]} 26. c6 {[%emt 0:12:23]} Rd4 {[%emt 0:00:30]} 27. Qxc7 {[%emt 0:03:22]} Bxa6 {[%emt 0:00:30]} 28. Qxe5 {[%emt 0:06:47]} Rc4 {[%emt 0:00:00]} 29. h3 {[%emt 0:01:35]} Rxc6 {[%emt 0:00:00]} 30. b5 {[%emt 0:00:17]} Rxc3 {[%emt 0:00:00]} 31. Qxc3 {[%emt 0:00:23]} Bxb5 {[%emt 0:00:00]} 32. Qb4 {[%emt 0:00:35]} Bc6 {[%emt 0:00:00]} 33. a4 {[%emt 0:00:22]} Bd5 {[%emt 0:00:00]} 34. a5 {[%emt 0:01:01]} Rc8 {[%emt 0:00:30]} 35. Qb2 {[%emt 0:01:37]} Rc4 {[%emt 0:00:30]} 36. Qa3 {[%emt 0:00:33]} Rc2 {[%emt 0:00:30]} 37. Qd6 {[%emt 0:00:31]} Ra2 {[%emt 0:00:30]} 38. a6 {[%emt 0:00:27]} g6 {[%emt 0:01:30]} 39. a7 {[%emt 0:00:32]} g5 {[%emt 0:02:30]} 40. Qb8+ {[%emt 0:00:44]} Kg7 {[%emt 0:00:00]} 41. Qe5+ {[%emt 0:02:51]} f6 {[%emt 0:01:00]} 42. Qc7+ {[%emt 0:01:30]} Kg6 {[%emt 0:00:00]} 43. Qb8 {[%emt 0:00:30]} Kg7 {[%emt 0:01:00]} 44. Qb6 {[%emt 0:01:30]} h5 {[%emt 0:01:30]} 45. Qd4 {[%emt 0:14:39]} h4 {[%emt 0:02:30]} 46. Kf1 {[%emt 0:01:47]} Kf7 {[%emt 0:01:30]} 47. f3 {[%emt 0:03:46]} Kg7 {[%emt 0:01:30]} 48. Ke1 {[%emt 0:01:13]} Kf7 {[%emt 0:01:30]} 49. Kd1 {[%emt 0:00:41]} Kg7 {[%emt 0:02:30]} 50. Kc1 {[%emt 0:00:04]} Kg6 {[%emt 0:07:30]} 51. Kb1 {[%emt 0:00:38]} Rxg2 {[%emt 0:05:30]} 52. Qxd5 {[%emt 0:00:30]} exd5 {[%emt 0:00:30]} 53. a8=Q {[%emt 0:00:00]} Rg3 {[%emt 0:00:00]} 54. Qg8+ {[%emt 0:02:17]} Kh6 {[%emt 0:00:00]} 55. Qh8+ {[%emt 0:00:30]} Kg6 {[%emt 0:00:30]} 56. Qg8+ {[%emt 0:00:30]} Kh6 {[%emt 0:00:30]} 57. Qxd5 {[%emt 0:00:30]} Rxh3 {[%emt 0:00:00]} 58. Qf5 {[%emt 0:00:00]} Rh1+ {[%emt 0:00:00]} 59. Kb2 {[%emt 0:01:36]} Kg7 {[%emt 0:00:00]} 60. Qg4 {[%emt 0:00:31]} h3 {[%emt 0:01:00]} 61. f4 {[%emt 0:02:53]} h2 {[%emt 0:01:30]} 62. Qg2 {[%emt 0:00:08]} Re1 {[%emt 0:00:30]} 63. Qxh2 {[%emt 0:00:01]} gxf4 {[%emt 0:00:30]} 64. Qxf4 {[%emt 0:01:15]} Re5 {[%emt 0:00:00]} 65. Kc3 {[%emt 0:00:21]} Kg6 {[%emt 0:00:00]} 66. Qg4+ {[%emt 0:00:19]} Rg5 {[%emt 0:01:30]} 67. Qe6 {[%emt 0:00:04]} Re5 {[%emt 0:00:00]} 68. Qg8+ {[%emt 0:00:30]} Kf5 {[%emt 0:00:00]} 69. Kd4 {[%emt 0:00:00]} Ra5 {[%emt 0:04:30]} 70. Ke3 {[%emt 0:01:35]} Rc5 {[%emt 0:03:30]} 71. Qh7+ {[%emt 0:00:08]} Ke6 {[%emt 0:00:30]} 72. Qh3+ {[%emt 0:00:32]} Ke7 {[%emt 0:00:30]} 73. Qh7+ {[%emt 0:00:30]} Ke6 {[%emt 0:00:30]} 74. Ke4 {[%emt 0:01:21]} Re5+ {[%emt 0:00:30]} 75. Kf4 {[%emt 0:00:30]} Rg5 {[%emt 0:00:00]} 76. Qh3+ {[%emt 0:00:30]} Ke7 {[%emt 0:00:00]} 77. Qc8 {[%emt 0:00:14]} Re5 {[%emt 0:00:00]} 78. Qc7+ {[%emt 0:00:30]} Ke6 {[%emt 0:00:00]} 79. Qc6+ {[%emt 0:00:30]} Ke7 {[%emt 0:00:30]} 80. Qb6 {[%emt 0:00:30]} Rg5 {[%emt 0:00:00]} 81. Qc7+ {[%emt 0:01:57]} Ke6 {[%emt 0:00:00]} 82. Qd8 {[%emt 0:00:00]} Rf5+ {[%emt 0:00:30]} 83. Ke4 {[%emt 0:00:00]} Re5+ {[%emt 0:00:30]} 84. Kd4 {[%emt 0:00:00]} Kf7 {[%emt 0:00:00]} 85. Qd7+ {[%emt 0:00:02]} Kg6 {[%emt 0:00:00]} 86. Qc7 {[%emt 0:00:30]} Rg5 {[%emt 0:00:30]} 87. Qc2+ {[%emt 0:00:30]} Kf7 {[%emt 0:00:30]} 88. Qh7+ {[%emt 0:00:30]} Ke6 {[%emt 0:00:30]} 89. Qh8 {[%emt 0:00:56]} Ke7 {[%emt 0:00:30]} 90. Ke4 {[%emt 0:00:30]} Re5+ {[%emt 0:00:30]} 91. Kf4 {[%emt 0:00:30]} Rg5 {[%emt 0:00:00]} 92. Kf3 {[%emt 0:00:00]} Rf5+ {[%emt 0:00:00]} 93. Kg4 {[%emt 0:00:17]} Rg5+ {[%emt 0:00:30]} 94. Kf4 {[%emt 0:00:00]} Kf7 {[%emt 0:00:00]} 95. Qh7+ {[%emt 0:00:17]} Ke6 {[%emt 0:00:00]} 96. Qe4+ {[%emt 0:00:37]} Re5 {[%emt 0:00:00]} 97. Qc6+ {[%emt 0:00:28]} Ke7 {[%emt 0:00:00]} 98. Qc7+ {[%emt 0:00:12]} Ke6 {[%emt 0:00:30]} 99. Qd8 {[%emt 0:00:16]} Rf5+ {[%emt 0:00:00]} 100. Ke4 {[%emt 0:00:31]} Re5+ {[%emt 0:00:00]} 101. Kd4 {[%emt 0:00:00]} Kf7 {[%emt 0:00:30]} 102. Qd7+ {[%emt 0:00:19]} Kg6 {[%emt 0:00:30]} 103. Qb7 {[%emt 0:00:30]} Rg5 {[%emt 0:00:30]} 104. Qe4+ {[%emt 0:00:30]} Kf7 {[%emt 0:00:30]} 105. Qf4 {[%emt 0:00:30]} Re5 {[%emt 0:00:30]} 106. Qxe5 {[%emt 0:00:30]} fxe5+ {[%emt 0:00:30]} 107. Kxe5 {[%emt 0:00:00]} 1/2-1/2

[Event "Turkey IS Bank Super League 2017"]
[Site "Darica-Kocaeli"]
[Date "2017.08.04"]
[Round "10"]
[White "Samani, Yamac"]
[Black "Gundogan, Cem"]
[Result "1-0"]
[ECO "C03"]
[WhiteElo "2263"]
[BlackElo "2062"]
[Annotator "ChessBase"]
[PlyCount "107"]
[EventType "team-tourn"]
[EventCountry "TUR"]
[SourceTitle "playchess.com"]
[Source "ChessBase"]
[SourceQuality "1"]
[TimeControl "40/5400+30:1800+30"]

1. e4 {[%emt 0:00:30]} e6 {[%emt 0:01:00]} 2. d4 {[%emt 0:00:30]} d5 {[%emt 0:00:30]} 3. Nd2 {[%emt 0:00:30]} g6 {[%emt 0:07:30]} 4. Ngf3 {[%emt 0:00:30]} Bg7 {[%emt 0:00:30]} 5. Bd3 {[%emt 0:00:30]} Ne7 {[%emt 0:00:30]} 6. O-O {[%emt 0:01:30]} O-O {[%emt 0:01:30]} 7. c3 {[%emt 0:00:30]} b6 {[%emt 0:07:30]} 8. Re1 {[%emt 0:07:30]} c5 {[%emt 0:03:30]} 9. e5 {[%emt 0:06:30]} Nbc6 {[%emt 0:11:30]} 10. Nf1 {[%emt 0:05:30]} cxd4 {[%emt 0:14:30]} 11. cxd4 {[%emt 0:00:30]} f6 {[%emt 0:01:30]} 12. Bf4 {[%emt 0:09:30]} fxe5 {[%emt 0:07:30]} 13. Bxe5 {[%emt 0:00:30]} Nxe5 {[%emt 0:05:30]} 14. Nxe5 {[%emt 0:03:30]} Nf5 {[%emt 0:05:30]} 15. Bxf5 {[%emt 0:22:30]} Rxf5 {[%emt 0:05:30]} 16. Ne3 {[%emt 0:02:30]} Rf8 {[%emt 0:05:18]} 17. Nf3 {[%emt 0:05:30]} Qd6 {[%emt 0:00:54]} 18. Ng4 {[%emt 0:03:30]} a5 {[%emt 0:05:16]} 19. Nge5 {[%emt 0:00:30]} Ba6 {[%emt 0:00:12]} 20. Rc1 {[%emt 0:03:30]} Rac8 {[%emt 0:00:21]} 21. Qd2 {[%emt 0:01:30]} Bb5 {[%emt 0:04:36]} 22. a3 {[%emt 0:03:30]} Rfe8 {[%emt 0:00:39]} 23. Rxc8 {[%emt 0:03:35]} Rxc8 {[%emt 0:00:30]} 24. Rc1 {[%emt 0:00:30]} Qf8 {[%emt 0:00:30]} 25. h4 {[%emt 0:00:08]} Ba6 {[%emt 0:06:04]} 26. Rxc8 {[%emt 0:01:56]} Qxc8 {[%emt 0:02:49]} 27. Qd1 {[%emt 0:06:12]} Bf6 {[%emt 0:01:43]} 28. Qd2 {[%emt 0:02:58]} Bg7 {[%emt 0:00:29]} 29. Qd1 {[%emt 0:02:59]} Bf6 {[%emt 0:00:12]} 30. Qd2 {[%emt 0:00:54]} Kg7 {[%emt 0:01:17]} 31. Ng4 {[%emt 0:00:40]} Bd8 {[%emt 0:00:34]} 32. Nfe5 {[%emt 0:01:48]} Qc7 {[%emt 0:00:35]} 33. g3 {[%emt 0:02:14]} Bb5 {[%emt 0:00:26]} 34. Qe3 {[%emt 0:00:30]} Be8 {[%emt 0:00:16]} 35. Nf3 {[%emt 0:00:26]} Qd6 {[%emt 0:00:48]} 36. Qh6+ {[%emt 0:01:22]} Kg8 {[%emt 0:00:11]} 37. Nge5 {[%emt 0:00:06]} Qf8 {[%emt 0:00:48]} 38. Qe3 {[%emt 0:00:36]} Kg7 {[%emt 0:00:30]} 39. Nd3 {[%emt 0:00:49]} Qf6 {[%emt 0:00:31]} 40. Nf4 {[%emt 0:00:00]} Bf7 {[%emt 0:01:01]} 41. Ng5 {[%emt 0:02:47]} Be7 {[%emt 0:08:30]} 42. Ngxe6+ {[%emt 0:03:30]} Kh8 {[%emt 0:00:30]} 43. Nxd5 {[%emt 0:02:30]} Qxe6 {[%emt 0:00:30]} 44. Qxe6 {[%emt 0:00:30]} Bxe6 {[%emt 0:00:30]} 45. Nxe7 {[%emt 0:01:30]} Kg7 {[%emt 0:04:59]} 46. Nc6 {[%emt 0:02:30]} Kf6 {[%emt 0:02:59]} 47. f3 {[%emt 0:00:30]} g5 {[%emt 0:03:03]} 48. hxg5+ {[%emt 0:00:30]} Kxg5 {[%emt 0:00:30]} 49. Kf2 {[%emt 0:00:30]} Bd5 {[%emt 0:00:02]} 50. Ne5 {[%emt 0:00:30]} b5 {[%emt 0:00:09]} 51. Ke3 {[%emt 0:00:30]} h5 {[%emt 0:00:00]} 52. Nd3 {[%emt 0:00:30]} Bc4 {[%emt 0:00:30]} 53. Ke4 {[%emt 0:00:30]} h4 {[%emt 0:00:19]} 54. f4+ {[%emt 0:01:30]} 1-0

[Event "Turkey IS Bank Super League 2017"]
[Site "Darica-Kocaeli"]
[Date "2017.08.04"]
[Round "10"]
[White "Yaran, Siar"]
[Black "Tofan, Ibrahim"]
[Result "1-0"]
[ECO "A02"]
[WhiteElo "2253"]
[BlackElo "2194"]
[Annotator "ChessBase"]
[PlyCount "83"]
[EventType "team-tourn"]
[EventCountry "TUR"]
[SourceTitle "playchess.com"]
[Source "ChessBase"]
[SourceQuality "1"]
[TimeControl "40/5400+30:1800+30"]

1. b3 {[%emt 0:00:30]} b6 {[%emt 0:01:00]} 2. Bb2 {[%emt 0:00:30]} Bb7 {[%emt 0:00:30]} 3. e3 {[%emt 0:00:00]} Nf6 {[%emt 0:00:30]} 4. f4 {[%emt 0:01:00]} d6 {[%emt 0:00:30]} 5. Nf3 {[%emt 0:00:30]} Nbd7 {[%emt 0:00:30]} 6. Be2 {[%emt 0:02:30]} g6 {[%emt 0:00:30]} 7. O-O {[%emt 0:00:30]} Bg7 {[%emt 0:00:30]} 8. a4 {[%emt 0:00:30]} a5 {[%emt 0:00:30]} 9. Na3 {[%emt 0:00:30]} O-O {[%emt 0:00:30]} 10. Nc4 {[%emt 0:01:30]} Ne4 {[%emt 0:02:30]} 11. Bxg7 {[%emt 0:11:30]} Kxg7 {[%emt 0:00:30]} 12. Qe1 {[%emt 0:02:30]} e6 {[%emt 0:05:30]} 13. d3 {[%emt 0:02:30]} Nec5 {[%emt 0:00:30]} 14. Qg3 {[%emt 0:07:30]} Qe7 {[%emt 0:03:30]} 15. Nd4 {[%emt 0:03:30]} f5 {[%emt 0:01:30]} 16. Rae1 {[%emt 0:04:30]} Rae8 {[%emt 0:02:30]} 17. Bf3 {[%emt 0:04:30]} Bxf3 {[%emt 0:01:30]} 18. Rxf3 {[%emt 0:01:30]} Nf6 {[%emt 0:02:30]} 19. Rff1 {[%emt 0:05:30]} Qd7 {[%emt 0:09:30]} 20. Nf3 {[%emt 0:03:30]} Qc6 {[%emt 0:04:30]} 21. Nh4 {[%emt 0:10:30]} Ncd7 {[%emt 0:03:30]} 22. Re2 {[%emt 0:04:30]} Qc5 {[%emt 0:04:30]} 23. Rf3 {[%emt 0:01:30]} b5 {[%emt 0:04:30]} 24. axb5 {[%emt 0:00:30]} a4 {[%emt 0:01:30]} 25. bxa4 {[%emt 0:00:30]} Ra8 {[%emt 0:00:30]} 26. a5 {[%emt 0:05:30]} Qxb5 {[%emt 0:01:30]} 27. h3 {[%emt 0:01:30]} d5 {[%emt 0:11:30]} 28. Ne5 {[%emt 0:00:30]} Nxe5 {[%emt 0:00:30]} 29. fxe5 {[%emt 0:00:00]} Ne4 {[%emt 0:00:30]} 30. dxe4 {[%emt 0:05:00]} Qxe2 {[%emt 0:01:30]} 31. exf5 {[%emt 0:00:00]} exf5 {[%emt 0:03:30]} 32. e6 {[%emt 0:04:43]} Rae8 {[%emt 0:31:24]} 33. Nxf5+ {[%emt 0:06:20]} Rxf5 {[%emt 0:00:49]} 34. Rxf5 {[%emt 0:00:08]} Kg8 {[%emt 0:01:45]} 35. Rxd5 {[%emt 0:07:19]} Rxe6 {[%emt 0:00:19]} 36. Rd8+ {[%emt 0:00:20]} Kg7 {[%emt 0:01:00]} 37. Qxc7+ {[%emt 0:00:08]} Kh6 {[%emt 0:00:00]} 38. Qf4+ {[%emt 0:00:19]} g5 {[%emt 0:00:23]} 39. Qf8+ {[%emt 0:00:13]} Kg6 {[%emt 0:00:45]} 40. Qg8+ {[%emt 0:00:00]} Kf6 {[%emt 0:01:05]} 41. Rf8+ {[%emt 0:02:00]} Ke5 {[%emt 0:00:30]} 42. Qg7+ {[%emt 0:01:30]} 1-0

[Event "Turkey IS Bank Super League 2017"]
[Site "Darica-Kocaeli"]
[Date "2017.08.04"]
[Round "10"]
[White "Tasdogen, Dincer"]
[Black "Uzumcu, Ahmet Utku"]
[Result "1-0"]
[ECO "B23"]
[WhiteElo "2215"]
[BlackElo "2223"]
[Annotator "NA"]
[PlyCount "59"]
[EventType "team-tourn"]
[EventCountry "TUR"]
[SourceTitle "playchess.com"]
[Source "ChessBase"]
[SourceQuality "1"]
[TimeControl "40/5400+30:1800+30"]

{[%evp 10,45,7,15,9,8,32767,32767,32767,30,45,32767,42,86,53,70,122,32767,141,150,177,171,389,389,441,244,382,32767,32767,32767,32767,32767,32767,32767,32767,650,822,901]} 1. e4 {[%emt 0:00:30]} c5 {[%emt 0:01:00]} 2. Ne2 {[%emt 0:00:30]} Nf6 {[%emt 0:00:30]} 3. Nbc3 {[%emt 0:00:30]} d6 {[%emt 0:00:30]} 4. g3 {[%emt 0:00:00]} g6 {[%emt 0:03:30] B23: Closed Sicilian: Lines without g3} 5. Bg2 {[%emt 0:00:00]} Bg7 {[%emt 0:00:30]} 6. O-O {[%emt 0:00:00]} O-O {[%emt 0:03:30]} 7. d3 {[%emt 0:00:00]} e5 {[%emt 0:01:30]} 8. f4 {[%emt 0:08:30]} Nc6 {[%emt 0:10:30]} 9. h3 {[%emt 0:13:30] LiveBook: 9 Games} h6 {[%emt 0:05:30]} (9... Nd4 10. f5 b5 11. Nxd4 cxd4 12. Ne2 d5 13. g4 dxe4 14. Ng3 Rb8 15. g5 e3 16. gxf6 Bxf6 {0-1 (29) Jobava,B (2707)-Carlsen,M (2832) Leuven 2017}) 10. f5 {[%emt 0:13:30]} Nd4 {[%emt 0:04:30] [#]} 11. g4 $1 {[%emt 0:05:30]} Bd7 {[%emt 0:09:30]} 12. Ng3 {[%emt 0:11:30]} Nh7 $146 {[%emt 0:10:30]} ({Find the theoretical novelty and annotate with similar games:} 12... Kh7 13. Nce2 g5 14. c3 Nxe2+ 15. Qxe2 Bc6 16. c4 {½-½ (43) Kraupfogel,M-Huber,A (2034) Graz 2004}) 13. Nd5 {[%emt 0:03:30]} b5 {[%emt 0:09:30]} 14. c3 {[%emt 0:07:30]} Nc6 {[%emt 0:00:30]} 15. Qf3 {[%emt 0:06:30]} Ng5 $2 {[%emt 0:07:30]} (15... Qh4 16. f6 Bh8) 16. Qf2 {[%emt 0:04:30]} Re8 {[%emt 0:02:30]} 17. f6 {[%emt 0:04:54]} (17. fxg6 $142 Rf8 18. gxf7+ Nxf7 19. Nf5) 17... Bf8 {[%emt 0:00:00]} 18. Bxg5 {[%emt 0:03:14]} hxg5 {[%emt 0:00:00]} 19. Qd2 {[%emt 0:00:30]} Bh6 {[%emt 0:00:30]} 20. h4 {[%emt 0:00:30]} Bxg4 {[%emt 0:00:30]} 21. hxg5 {[%emt 0:00:30]} Bf8 {[%emt 0:01:30]} 22. Kf2 {[%emt 0:01:35]} Be6 {[%emt 0:02:30]} 23. Rh1 $18 {[%emt 0:05:43]} Bxd5 {[%emt 0:00:30]} 24. exd5 {[%emt 0:00:30]} e4 {[%emt 0:00:30]} 25. Bxe4 {[%emt 0:00:30]} Ne5 {[%emt 0:00:30]} 26. Rh4 {[%emt 0:00:30]} Bh6 {[%emt 0:00:30]} 27. Kg2 {[%emt 0:00:30]} Bg7 {[%emt 0:00:30]} 28. fxg7 {[%emt 0:00:30]} Kxg7 {[%emt 0:00:00]} 29. Rah1 {[%emt 0:00:54]} Qd7 {[%emt 0:00:00]} 30. Qf4 {[%emt 0:00:00]} 1-0